Cogmind - Beta 16 @@@ ROGUE MODE // 2025.11.30 @ 16:39:33 Player: Lis Result: Destroyed by as-34880 with Assembled Maul Performance ------------- Evolutions (0) 0 Regions Visited (0) 0 Robots Destroyed (1) 5 Value Destroyed (7) 7 Prototype IDs (0) 0 Alien Tech Used (0) 0 Bonus (0) 0 TOTAL SCORE: 12 Bonus ------- None Cogmind --------- Core Integrity 0/250 Matter 148/300 Energy 100/100 System Corruption 13% Temperature Cool (85) Movement Core (50) Location -11/Scrapyard Parts ------- > --- POWER (1) -------- (None) > --- PROPULSION (2) --- (None) > --- UTILITY (2) ------ Improved Terrain Scanner > --- WEAPON (2) ------- (None) > --- INVENTORY (5) ---- Light Treads Small Laser Peak State ------------ > --- POWER ------------ Light Ion Engine > --- PROPULSION ------- Aluminum Leg Aluminum Leg > --- UTILITY ---------- Small Storage Unit Improved Terrain Scanner > --- WEAPON ----------- Assault Rifle Light Assault Rifle > --- INVENTORY -------- Light Ion Engine Light Treads Seismic Detector Small Laser Mining Laser [Rating: 9] Favorites ----------- Power Light Ion Engine Engine Light Ion Engine Propulsion Aluminum Leg Leg Aluminum Leg Utility Small Storage Unit Device Improved Terrain Scanner Storage Small Storage Unit Weapon Light Assault Rifle Ballistic Gun Light Assault Rifle Special Weapon Mining Laser Build | -11 ------- Run | Yrd Slots Evolved . | . Power . | . Propulsion . | . Utility . | . Weapon . | . Parts Attached 10 | 10 Power 2 | 2 Engine 2 | 2 Core . | . Reactor . | . Propulsion 2 | 2 Treads . | . Leg 2 | 2 Wheel . | . Hover . | . Flight . | . Utility 3 | 3 Device 2 | 2 Storage 1 | 1 Processor . | . Hackware . | . Protection . | . Artifact . | . Weapon 3 | 3 Energy Gun . | . Energy Cannon . | . Ballistic Gun 2 | 2 Ballistic Cannon . | . Launcher . | . Special Weapon 1 | 1 Impact Weapon . | . Slashing Weapon . | . Piercing Weapon . | . Special Melee Weapon . | . Unidentified Prototypes . | . Parts Lost 9 | 9 Power 2 | 2 Propulsion 2 | 2 Utility 2 | 2 Weapon 3 | 3 Highest Loss Streak 5 | 5 To Critical Strikes . | . Average Backups 3 | 3 Power . | . Propulsion . | . Utility . | . Weapon 1 | 1 Tool/Special . | . Unused Backups 2 | 2 Power . | . Propulsion 1 | 1 Utility . | . Weapon 1 | 1 Tool/Special . | . Average Slot Usage (%) . | . Peak Build Rating 9 | 9 Average Rating 7 | 7 On Entrance . | . Avg Prop Armor Cover (%) . | . Naked Turns . | . Heaviest Build 12 | 12 Greatest Support 20 | 20 Greatest Overweight (x) 3 | 3 Average Overweight (x) . | . Largest Inventory Capacity 8 | 8 Average Capacity 7 | 7 Most Carried 6 | 6 Average Carried 3 | 3 Final Capacity 5 | 5 Final Carried 2 | 2 Class Distribution -------------------- None Dominant Class ---------------- None Resources | -11 ----------- Run | Yrd Matter Collected 222 | 222 Remotely . | . Salvage Created 11 | 11 Parts 6 | 6 Haulers Intercepted . | . Recyclers Shooed . | . Parts Field Recycled . | . Retrieved Matter . | . Parts Self-Destructed . | . Prevented . | . Parts Restored . | . Kills | -11 ------- Run | Yrd Combat Hostiles Destroyed . | . Classes Destroyed 1 | 1 Tunneler 1 | 1 Best Kill Streak 1 | 1 Combat Bots Only . | . Max Kills in Single Turn 1 | 1 Gunslinging . | . Exploded . | . Melee . | . Uniques/NPCs Destroyed . | . Combat | -11 -------- Run | Yrd Hostile Shots Fired 42 | 42 Missed 6 | 6 Hits 36 | 36 Melee 5 | 5 Projectile 31 | 31 Critical Strikes 1 | 1 Part Disruptions 1 | 1 Damage Taken 1077 | 1077 Core 272 | 272 Absorbed by Shields . | . Core Remaining (%) . | . Volleys Fired 120 | 120 Largest 2 | 2 Hottest 100 | 100 Shots Fired 126 | 126 Gun 13 | 13 Cannon . | . Launcher . | . Special 113 | 113 Kinetic 13 | 13 Thermal 113 | 113 Explosive . | . Electromagnetic . | . Robot Hit Streak 1 | 1 Robot Miss Streak . | . Penetration Max . | . Secondary Targets . | . Shots Hit Robots 1 | 1 Core Hits 2 | 2 Critical Kills . | . Critical Parts Destroyed . | . Critical Strikes . | . Melee Attacks . | . Impact . | . Slashing . | . Piercing . | . Sneak Attacks . | . Combat Hostiles . | . Follow-up Attacks . | . Damage Inflicted 20 | 20 Guns 20 | 20 Cannons . | . Explosions . | . Melee . | . Ramming . | . Kinetic 20 | 20 Thermal . | . Explosive . | . Electromagnetic . | . Impact . | . Slashing . | . Piercing . | . Highest Corruption 11 | 11 Average Corruption 10 | 10 Corruption Purged . | . Corruption Blocked . | . Effects 60 | 60 Message Errors 12 | 12 Matter Fused 10 | 10 Heat Flow Errors 10 | 10 Energy Discharges 9 | 9 Parts Fused 1 | 1 Data Loss (minor) 12 | 12 Data Loss (major) 4 | 4 Misfires 1 | 1 Weapon Failures 1 | 1 Overload Shots . | . Overflow Damage . | . Projectiles . | . Explosions . | . Melee . | . Knockbacks . | . Impact . | . Kinetic . | . Secondary . | . Self-Inflicted Damage . | . Shots . | . Rammed 1 | 1 Targets Rammed 1 | 1 Kicked . | . Crushed . | . Highest Temperature 270 | 270 Average Temperature 38 | 38 Received Heat Transfer 160 | 160 Siege Activations . | . Martial Activations . | . Shielding Activations . | . Robots Disrupted . | . Combat Hostiles . | . Robots Corrupted . | . Combat Hostiles . | . Parts Fried . | . Impact Corruptions . | . Robots Melted . | . Combat Hostiles . | . Parts Melted . | . Heat Transferred . | . Parts Sabotaged . | . Parts Stolen . | . Parts Stripped . | . Power Chain Reactions . | . Alert | -11 ------- Run | Yrd Maximum Alert Level . | . Low Security (%) 100 | 100 Level 1 . | . Level 2 . | . Level 3 . | . Level 4 . | . Level 5 . | . High Security . | . Max Security . | . Peak Influence 5 | 5 Initial . | . Average . | . Influence Increases 5 | 5 Destroy 0b10 Robot/NC 5 | 5 Influence Decreases 5 | 5 Time Decay 5 | 5 Squads Dispatched . | . Investigation . | . Extermination . | . Reinforcement . | . Assault . | . Garrison . | . Intercept . | . Searches Triggered . | . Construction Impeded . | . Haulers Reinforced . | . Active Scanning Responses . | . Cargo Convoy Interrupts . | . Stealth | -11 --------- Run | Yrd Distress Signals . | . Communications Jammed . | . Distress Signals . | . Times Spotted 20 | 20 Peak Tracking Total 20 | 20 Tactical Retreats . | . Traps | -11 ------- Run | Yrd Traps Triggered . | . Indirectly . | . Trap Hack Attempts . | . Triggered . | . Disarmed . | . Reprogrammed . | . Reused . | . Traps Extracted . | . Installed . | . Triggered . | . Machines | -11 ---------- Run | Yrd Machines Disabled . | . Max in Single Turn . | . Machines Repaired . | . Machines Dismantled . | . Machines Sabotaged . | . Overloaded Fab Kills . | . Hacking | -11 --------- Run | Yrd Machines Accessed . | . Terminals . | . Fabricators . | . Repair Stations . | . Recycling Units . | . Scanalyzers . | . Garrison Access . | . Total Hacks . | . Successful . | . Failed . | . Catastrophic . | . Database Lockouts . | . Manual . | . Terminals . | . Fabricators . | . Repair Stations . | . Recycling Units . | . Scanalyzers . | . Garrison Access . | . Terminal Hacks . | . Fabricator Hacks . | . Repair Station Hacks . | . Recycling Unit Hacks . | . Scanalyzer . | . Garrison Access Hacks . | . Unauthorized Hacks . | . Terminals . | . Fabricators . | . Repair Stations . | . Recycling Units . | . Scanalyzers . | . Garrison Access . | . Data Cores Recovered . | . Used . | . Hacking Detections . | . Full Trace Events . | . Feedback Events . | . Feedback Blocked . | . Robot Schematics Acquired . | . Robots Built . | . Authchips . | . Time . | . Total Robot Build Rating . | . Part Schematics Acquired . | . Parts Built . | . Authchips . | . Time . | . Total Part Build Rating . | . Part Studies Acquired . | . Parts Repaired . | . Time . | . Parts Recycled . | . Recycled Matter . | . Retrieved Matter . | . Retrieved Components . | . Parts Scanalyzed . | . Part Schematics Acquired . | . Parts Damaged . | . Bothacking | -11 ------------ Run | Yrd Used RIF Installer . | . Robots Hacked . | . Non-combat . | . Combat . | . Robot Hacks Applied . | . Relay Couplers Released . | . Fabnet Peak Effective % . | . Robots Rewired . | . Allies Hacked . | . Hacks Repelled . | . Allies | -11 -------- Run | Yrd Total Allies . | . Largest Group . | . Highest-Rated Group . | . Highest-Rated Ally . | . Total Orders . | . Ally Attacks . | . Total Damage . | . Kills . | . Allies Corrupted . | . Allies Melted . | . Intel | -11 ------- Run | Yrd Active Infowar (turns) 2188 | 2188 Terrain 2188 | 2188 Seismic 48 | 48 Robot Analysis Total . | . Derelict Logs Recovered . | . Drone Launches . | . Drone Recoveries . | . Exploration | -11 ------------- Run | Yrd Turns Passed 2309 | 2309 Spaces Moved 237 | 237 Core 13 | 13 Treads . | . Legs 224 | 224 Wheels . | . Hover . | . Flight . | . Fastest Speed 50 | 50 Average Speed 118 | 118 Slowest Speed 200 | 200 Overloaded Moves . | . Propulsion Burnouts . | . Robots Hopped . | . Potential Cave-ins 26 | 26 Cave-ins Triggered 2 | 2 Exploration Rate (%) 13 | 13 Regions Visited . Branch Regions . Pre-discovered Areas . | . Known Exits Taken . | . Unknown Exits Taken . | . Scrap Searched . | . Spaces Dug 43 | 43 Terrain Destroyed 49 | 49 Melee . | . Projectile 49 | 49 AOE . | . Terrain Rammed . | . Walls Destroyed . | . Machines Disabled . | . Actions | -11 --------- Run | Yrd Total 1915 | 1915 Wait 1531 | 1531 Move 237 | 237 Hop . | . Pick Up 12 | 12 Fast Attach 1 | 1 Attach 11 | 11 Detach 1 | 1 Swap . | . Drop 1 | 1 Fire 120 | 120 Melee . | . Ram 1 | 1 Kick . | . Crush . | . Escape Stasis . | . Rewire . | . Trap . | . Miscellaneous . | . Route ------- -11/Scrapyard (discovered 1 exit: [*Mat]) History --------- Turn | Location | Event 28 | -11/Scrapyard | Discovered new exit (range 15) 754 | -11/Scrapyard | Crushed by falling debris 817 | -11/Scrapyard | Crushed by falling debris 817 | -11/Scrapyard | System corruption reached 10% 848 | -11/Scrapyard | Lost 3 parts (1p1n1u) 2305 | -11/Scrapyard | Assembled infested the area 2308 | -11/Scrapyard | Core integrity fell below 50% 2310 | -11/Scrapyard | Core integrity fell below 20% 2310 | -11/Scrapyard | Destroyed by as-34880 with Assembled Maul Last Messages --------------- 02091_ System corrupted: Matter fused (-10). 02106_ GD ,ZLCWBSVKOL0P|XE4UPRAN%GBT 02125_ &,AMBN& M,GDED,#EFO0NFXG TL4SR%L 02154_ System corrupted: Energy discharge (-40). 02170_ HOPU=A=XX4I8OWK#7G0 XKG 02201_ System corrupted: Heat flow error (+184). 02225_ System corrupted: Component data lost. 02305_ ALERT: Infestation in the scrapyard, dispatching Demolisher response squad. [Achievement: Curiosity Killed The Cat] 02305_ T-07 Excavator destroyed. [Achievement: Hunted] 02306_ Lgt. Ion Engine destroyed. 02307_ as-21059 destroyed. 02307_ Assault Rifle destroyed. 02307_ Aluminum Leg destroyed. 02309_ Lgt. Assault Rifle destroyed. 02309_ Slammed into as-75119. 02310_ Critical hit (Burn: +80). 02310_ Sml. Storage Unit destroyed. 02310_ System corrupted by crushing effect (+2). Map ----- +----------------------------------------------------+ | | | | | | | | | | | | | | | | | | | | | | | | | | | | | ?????????????##?#?######?#######??###??#???##????# | | ??????????#?###?#?##########?####?#??###?????????? | | ????????????###########?###########??####?#??????? | | ????????????#######?#?#############?####??????##?? | | ???????????#?#####?#?##?#####?##?##?######???#???? | | ???????????##??#?#####################?###???????? | | ???????#????#?####### ## ##?######?#####???????# | | ?????????#?##?###### a aa ##############???##### | | ???????????######### aa #########?######### ## | | ?????????#??##??##?# aaaa ### ####### # # # # | | ???????????###?###### aaa ###### # # # ### | | ??????????#??######## aaa@a ###################### | | ???????????#?######## a a #####??###########?##??# | | ???????#????###########=a###?######?#####??????#?? | | ???????#???# ##### ##!##?#??#?#?#?#######??????? | | ????????????#??##?# ?##%###?#############?#?#????# | | ???????#???? ###?## ########??#?###?#?#??????#?? | | ?????????????? ?####### #?#?###?########????#????? | | ?????????##?? #### ### #########?######?????????? | | ??????#??????? #? ## ### ##?# #####?##????#?????? | | ???????????#???#####?#########? ##?#?#????#??????? | | ?????????????????######?##?#?####?###???????#????? | | ???????????????????###?######?######???#?#??#???#? | | ??????????????#??????#######?#####?#??????#??????? | | ?????????????????????##?##??## #?????????#???#??? | | ?????????????#????????#???#??????????????????????? | | ??????????????????????#?#?#??????????????????????? | | ?????????????????????????????????????????????????? | | ?????????????????????????????????????????????????? | | ?????????????????????????????????????????????????? | | ?????????????????????????????????????????????????? | | ?????????????????????????????????????????????????? | | ?????????????????????????????????????????????????? | | ?????????????????????????????????????????????????? | | ?????????????????????????????????????????????????? | | ?????????????????????????????????????????????????? | +----------------------------------------------------+ Best States ------------- Heat Dissipation 25 Energy Generation 10 Energy Capacity 125 Matter Stores 254 Matter Capacity 300 Sight Range 16 Terrain Scan Range 16 Terrain Scan Density 10 Evasion (%) 55 Item Schematics ----------------- None Robot Schematics ------------------ None Fabricated ------------ Nothing Repaired ---------- Nothing Studied --------- None Alien Tech Used ----------------- None Achievements -------------- Curiosity Killed The Cat Hunted Challenges ------------ None Game ------ Seed ActiveAuthchipTrap Manual? 0 Play Time 00:23:48 Cumulative 24.5 hours Start 2025.11.30 @ 16:21:26 End 2025.11.30 @ 16:39:33 Sessions 0 Manual Loads 0 Difficulty Rogue Special Mode None Game No. 30 Rogue 30 Adventurer 0 Explorer 0 Win Type - Total 0 Types 0/0/0/0/0/0/0/0/0/0 Lore% 10 Gallery% 23 Achievement% 19 Wizard Run 0 Options --------- Layout 0 ASCII 0 Keyboard 1 Movement Numpad Keybinds 0 Fullscreen 1 Font 24/Smallcaps Map View 113x50 Zoom Use 0% Tactical HUD 1 Map Filters NONE Filters NONE Steam 1 RUN: 403c88e1-155e-48e7-b8b6-5f97b3f1d773